[Event "31st MPL National U18G Chess-ch 2022"]
[Site "Pollachi"]
[Date "2022.04.21"]
[Round "8.3"]
[White "Rindhiya V"]
[Black "Udagedara, Sandali Kanishka"]
[Result "1-0"]
[ECO "B15"]
[WhiteElo "1949"]
[BlackElo "1510"]
[Annotator "TA"]
[PlyCount "119"]
[EventDate "2022.04.18"]
[EventCountry "IND"]
[SourceTitle "playchess.com"]
[Source "ChessBase"]
[SourceQuality "1"]
[TimeControl "5400+30"]

{[%evp 14,118,24,28,35,27,48,26,23,23,21,5,46,61,119,113,102,75,89,87,118,136,149,155,145,151,189,144,162,156,146,147,164,132,148,24,46,38,20,8,102,108,229,209,201,214,247,232,227,146,145,117,137,134,152,25,520,437,736,724,618,0,493,371,528,478,433,387,381,362,989,1005,607,592,29975,29976,29975,29976,29976,29977,29977,29978,29978,29977,29988,29989,29989,29988,29988,29989,29989,29990,29990,29991,29992,29993,29993,29994,29994,29995,29997,29998,29998,29998,29998,29999,29999]} 1. e4 {[%emt 0:00:02]} c6 {[%emt 0:02:42]} 2. d4 {[%emt 0:00:07]} d5 {[%emt 0:00:01]} 3. Nc3 {[%emt 0:00:04]} dxe4 {[%emt 0:00:08]} 4. Nxe4 {[%emt 0:00:03]} Nf6 {[%emt 0:00:06]} 5. Nxf6+ {[%emt 0:00:02]} exf6 {[%emt 0:00:07]} 6. c3 {[%emt 0:00:06]} Bd6 {[%emt 0:00:20]} 7. Bd3 {[%emt 0:00:11]} O-O {[%emt 0:00:34]} 8. Qc2 {[%emt 0:00:03] Active counter play!} Re8+ {[%emt 0:00:05] B15: Caro-Kann: 3 Nc3: 3...g6 and 3...dxe4 4 Nxe4 Nf6 5 Nxf6+ exf6.} 9. Ne2 {[%emt 0:00:05]} (9. Be3 $5 {[%cal Rd3h7]}) 9... h5 {[%emt 0:00:04]} 10. Be3 {[%emt 0:00:04]} Nd7 {[%emt 0:06:39] White has an edge.} 11. O-O-O {[%emt 0:00:15]} Nf8 {[%emt 0:00:20]} 12. Kb1 {[%emt 0:01:00] [#]} Bg4 $146 {[%emt 0:05:23]} ({Predecessor:} 12... Be6 13. c4 Rc8 14. Nc3 Bb4 15. a3 Bxc3 16. Qxc3 b5 17. d5 cxd5 18. c5 Qd7 {1-0 (35) Tabatabaei,M (2629)-Svane,R (2613) Chess.com INT 2020}) 13. h3 {[%emt 0:01:20]} Bxe2 {[%emt 0:01:36]} (13... Be6) (13... Be6 $14) 14. Qxe2 $16 {[%emt 0:07:17]} g6 {[%emt 0:02:29]} 15. g4 {[%emt 0:12:27]} h4 {[%emt 0:04:38]} 16. Qd2 {[%emt 0:02:22]} g5 {[%emt 0:07:07]} (16... Qc7) 17. f4 {[%emt 0:06:08][%cal Rf4g5]} Ne6 {[%emt 0:02:25][%cal Rd6f4]} 18. fxg5 {[%emt 0:00:17]} fxg5 {[%emt 0:00:07]} 19. Rhf1 {[%emt 0:14:04]} Nf4 {[%emt 0:05:02]} (19... Kg7) 20. Bxf4 {[%emt 0:02:52]} Bxf4 {[%emt 0:00:13]} 21. Rxf4 {[%emt 0:03:24]} gxf4 {[%emt 0:00:04]} 22. Qxf4 {[%emt 0:00:04] Qh6 is the strong threat.} Kg7 {[%emt 0:08:27] Inhibits Qh6+.} 23. g5 {[%emt 0:10:24] Prevents Qf6.} Qe7 {[%emt 0:01:08]} 24. g6 {[%emt 0:27:40]} ({Better is} 24. Rf1 $16) 24... f6 $1 $11 {[%emt 0:01:54]} 25. Qxh4 {[%emt 0:02:11] Threatening mate with Qh7+.} Rh8 {[%emt 0:00:03] Prevents Qh7+.} 26. Re1 $40 {[%emt 0:01:15][%mdl 128] White attacks.} Qd7 {[%emt 0:05:47]} (26... Qd6 $11 27. Qg4 Rae8 28. Rxe8 Rxe8) 27. Qg4 $16 {[%emt 0:00:38] Dancing on a razor blade.} Qxg4 {[%emt 0:12:33]} (27... Qc7 28. Rf1 Rae8) (27... Rad8 $16) 28. Re7+ $18 {[%emt 0:00:02]} Kh6 {[%emt 0:00:01][%cal Rg4d1]} 29. hxg4 {[%emt 0:00:03][%mdl 4096] Endgame KRR-KRB} Rab8 {[%emt 0:01:19]} 30. Bf5 {[%emt 0:01:45]} Rhg8 {[%emt 0:03:11]} 31. Kc2 {[%emt 0:05:08]} Rg7 {[%emt 0:05:17]} 32. Rxg7 {[%emt 0:00:02]} Kxg7 $16 {[%emt 0:26:40] [#] KR-KB} 33. c4 $1 {[%emt 0:00:07]} Rh8 {[%emt 0:00:00]} 34. a4 {[%emt 0:05:20]} (34. Kc3) ({White should try} 34. Kc3 $16) 34... Rh2+ $2 {[%emt 0:00:00][%mdl 8192]} (34... a5) (34... Rd8 $11) 35. Kc3 $18 {[%emt 0:00:02] Black must now prevent d5.} Rh3+ {[%emt 0:00:00]} (35... c5 36. dxc5 a5) (35... b6 $142 36. d5 Rh3+ 37. Kc2 (37. Kd4 c5+ 38. Ke4 Rh1 $11) 37... Rh2+ 38. Kd3 cxd5) 36. Kb4 {[%emt 0:00:36]} b6 {[%emt 0:00:00] [#]} 37. c5 $2 {[%emt 0:00:03]} (37. a5 Rh1 38. axb6 axb6 39. c5 bxc5+ 40. dxc5) (37. a5 $1 $18 {[%cal Ra5b6]}) 37... Rh2 $2 {[%emt 0:00:00][%mdl 8192]} (37... Rh1) (37... Rh1 $1 $11) 38. b3 {[%emt 0:00:30][%cal Bb2b3,Bb3b4,Bb4b5][%mdl 32]} (38. Kc3) 38... Rd2 {[%emt 0:00:00]} (38... Rh1 {might work better.} 39. Be4 Rd1) 39. Kc4 {[%emt 0:01:11]} Rd1 {[%emt 0:00:00]} 40. b4 {[%emt 0:00:07]} bxc5 {[%emt 0:00:00]} 41. dxc5 {[%emt 0:00:56] aiming for b5.} a6 {[%emt 0:00:00]} (41... Rc1+ 42. Kb3 Kf8) (41... Rc1+ 42. Kb3 Kf8) 42. b5 {[%emt 0:00:26]} Rc1+ {[%emt 0:00:00]} 43. Kb4 {[%emt 0:00:05]} axb5 {[%emt 0:00:00]} 44. axb5 {[%emt 0:00:01] White mates.} cxb5 {[%emt 0:00:00]} 45. Kxb5 {[%emt 0:00:03]} Kf8 {[%emt 0:00:00]} 46. c6 {[%emt 0:00:12]} Rc3 {[%emt 0:00:00]} 47. Kb6 {[%emt 0:00:08]} Rb3+ {[%emt 0:01:03]} 48. Kc7 {[%emt 0:00:04]} Ke7 {[%emt 0:01:30]} 49. g7 {[%emt 0:00:09]} Kf7 {[%emt 0:00:38]} 50. g8=Q+ {[%emt 0:00:32]} Kxg8 {[%emt 0:00:07]} 51. Be6+ {[%emt 0:00:04]} Kf8 {[%emt 0:00:06]} 52. Bxb3 {[%emt 0:00:02] KB-KP} Ke7 {[%emt 0:00:08]} 53. Kb7 {[%emt 0:00:04]} f5 {[%emt 0:00:07]} 54. c7 {[%emt 0:00:03]} fxg4 {[%emt 0:00:05]} 55. c8=Q {[%emt 0:05:50]} Kf6 {[%emt 0:00:07]} 56. Qxg4 {[%emt 0:00:00]} Ke7 {[%emt 0:00:04]} 57. Qe6+ {[%emt 0:00:00]} Kd8 {[%emt 0:00:05]} 58. Qd6+ {[%emt 0:00:00]} Ke8 {[%emt 0:00:03]} 59. Qc7 {[%emt 0:00:00]} Kf8 {[%emt 0:00:03]} 60. Qf7# {[%emt 0:00:00] Weighted Error Value: White=0.27 (precise) /Black=0.46} 1-0

[Event "31st MPL National U18G Chess-ch 2022"]
[Site "Pollachi"]
[Date "2022.04.21"]
[Round "8.4"]
[White "Femil Chelladurai"]
[Black "Vijayasubhasri S"]
[Result "1/2-1/2"]
[ECO "C01"]
[WhiteElo "1580"]
[BlackElo "1571"]
[Annotator "NA RC COMBH"]
[PlyCount "95"]
[EventDate "2022.04.18"]
[EventCountry "IND"]
[SourceTitle "playchess.com"]
[Source "ChessBase"]
[SourceQuality "1"]
[TimeControl "5400+30"]

1. e4 {[%emt 0:02:37]} e6 {[%emt 0:00:09]} 2. d4 {[%emt 0:00:38]} d5 {[%emt 0:00:06]} 3. exd5 {[%emt 0:00:13]} exd5 {[%emt 0:00:06]} 4. Nf3 {[%emt 0:00:37]} Nf6 {[%emt 0:00:09]} 5. Bd3 {[%emt 0:00:20]} Bd6 {[%emt 0:00:08]} 6. O-O {[%emt 0:01:08]} O-O {[%emt 0:00:06]} 7. Bg5 {[%emt 0:00:13]} Re8 {[%emt 0:00:29]} 8. Re1 {[%emt 0:00:21]} Nbd7 {[%emt 0:07:48]} 9. Nbd2 {[%emt 0:00:29]} h6 {[%emt 0:02:15]} 10. Bh4 {[%emt 0:01:34]} c6 {[%emt 0:03:25]} 11. c3 {[%emt 0:00:34]} Rxe1+ {[%emt 0:13:16]} 12. Qxe1 {[%emt 0:00:15]} Qe8 {[%emt 0:01:21]} 13. Bxf6 {[%emt 0:01:30]} Nxf6 {[%emt 0:02:58]} 14. Qxe8+ {[%emt 0:02:42]} Nxe8 {[%emt 0:00:15]} 15. Re1 {[%emt 0:00:20]} Be6 {[%emt 0:01:15]} 16. Ne5 {[%emt 0:01:34]} Bxe5 {[%emt 0:02:06]} 17. Rxe5 {[%emt 0:01:03]} Nd6 {[%emt 0:08:21]} 18. Kf1 {[%emt 0:02:53]} Re8 {[%emt 0:01:03]} 19. h3 {[%emt 0:00:20]} Kf8 {[%emt 0:00:54]} 20. Ke2 {[%emt 0:01:37]} f6 {[%emt 0:06:16]} 21. Re3 {[%emt 0:00:21]} Bf5 {[%emt 0:01:25]} 22. Rxe8+ {[%emt 0:00:10]} Kxe8 {[%emt 0:00:07]} 23. Bxf5 {[%emt 0:00:04]} Nxf5 {[%emt 0:00:06]} 24. Kd3 {[%emt 0:00:29]} Nd6 {[%emt 0:02:13]} 25. b3 {[%emt 0:01:26]} Kd7 {[%emt 0:05:42]} 26. Nf1 {[%emt 0:06:49]} Ne4 {[%emt 0:04:32]} 27. f3 {[%emt 0:03:13]} Nd6 {[%emt 0:02:28]} 28. Ng3 {[%emt 0:02:21]} g6 {[%emt 0:01:38]} 29. Nf1 {[%emt 0:01:15]} Ke6 {[%emt 0:01:03]} 30. Ne3 {[%emt 0:00:09]} Nf5 {[%emt 0:03:46]} 31. Nxf5 {[%emt 0:00:06]} Kxf5 {[%emt 0:00:18]} 32. g3 {[%emt 0:00:02]} Ke6 {[%emt 0:01:37]} 33. b4 {[%emt 0:01:36]} b6 {[%emt 0:02:18]} 34. Ke3 {[%emt 0:00:47]} Kd6 {[%emt 0:00:52]} 35. Kd3 {[%emt 0:00:02]} c5 {[%emt 0:02:52]} 36. b5 {[%emt 0:00:01]} c4+ {[%emt 0:00:16]} 37. Ke3 {[%emt 0:00:10]} Ke6 {[%emt 0:00:12]} 38. a4 {[%emt 0:00:09]} f5 {[%emt 0:01:07]} 39. f4 {[%emt 0:00:17]} Kf6 {[%emt 0:00:38]} 40. Kf3 {[%emt 0:00:02]} h5 {[%emt 0:04:49]} 41. g4 {[%emt 0:02:24]} h4 {[%emt 0:00:57]} 42. g5+ {[%emt 0:00:45]} Ke6 {[%emt 0:00:10]} 43. Ke2 {[%emt 0:00:07]} Kd6 {[%emt 0:00:16]} 44. Kd2 {[%emt 0:00:06]} Kc7 {[%emt 0:00:13]} 45. Kc2 {[%emt 0:00:08]} Kb7 {[%emt 0:00:41]} 46. Kb2 {[%emt 0:00:08]} a6 {[%emt 0:01:05]} 47. Ka3 {[%emt 0:00:05]} axb5 {[%emt 0:00:15]} 48. axb5 {[%emt 0:00:10]} 1/2-1/2

[Event "31st MPL National U18G Chess-ch 2022"]
[Site "Pollachi"]
[Date "2022.04.21"]
[Round "8.5"]
[White "Aswinika Mani R"]
[Black "Sachi Jain"]
[Result "0-1"]
[ECO "C41"]
[WhiteElo "1396"]
[BlackElo "1401"]
[Annotator "NA RC COMBH"]
[PlyCount "110"]
[EventDate "2022.04.18"]
[EventCountry "IND"]
[SourceTitle "playchess.com"]
[Source "ChessBase"]
[SourceQuality "1"]
[TimeControl "5400+30"]

1. e4 {[%emt 0:00:30]} e5 {[%emt 0:00:31]} 2. Nf3 {[%emt 0:00:17]} d6 {[%emt 0:00:37]} 3. d4 {[%emt 0:00:22]} Nd7 {[%emt 0:00:19]} 4. Nc3 {[%emt 0:00:37]} c6 {[%emt 0:00:25]} 5. a4 {[%emt 0:01:34]} Be7 {[%emt 0:00:18]} 6. Bc4 {[%emt 0:00:52]} h6 {[%emt 0:00:42]} 7. O-O {[%emt 0:00:57]} Ngf6 {[%emt 0:00:14]} 8. Re1 {[%emt 0:01:22]} Qc7 {[%emt 0:00:59]} 9. h3 {[%emt 0:02:12]} Nf8 {[%emt 0:01:32]} 10. d5 {[%emt 0:04:15]} g5 {[%emt 0:01:24]} 11. Nh2 {[%emt 0:02:35]} Ng6 {[%emt 0:01:45]} 12. a5 {[%emt 0:03:16]} Nf4 {[%emt 0:09:45]} 13. Ng4 {[%emt 0:04:46]} Bxg4 {[%emt 0:07:40]} 14. hxg4 {[%emt 0:00:23]} Qc8 {[%emt 0:00:01]} 15. a6 {[%emt 0:03:11]} b5 {[%emt 0:01:31]} 16. Bxf4 {[%emt 0:05:33]} gxf4 {[%emt 0:12:47]} 17. Be2 {[%emt 0:03:22]} b4 {[%emt 0:00:08]} 18. Na2 {[%emt 0:01:09]} c5 {[%emt 0:05:41]} 19. Bb5+ {[%emt 0:01:05]} Kf8 {[%emt 0:02:49]} 20. Bc6 {[%emt 0:01:55]} Rb8 {[%emt 0:00:31]} 21. f3 {[%emt 0:01:30]} h5 {[%emt 0:01:08]} 22. Bb7 {[%emt 0:00:44]} Qd8 {[%emt 0:00:47]} 23. Kf2 {[%emt 0:14:56]} hxg4 {[%emt 0:06:51]} 24. Rh1 {[%emt 0:00:34]} Nh5 {[%emt 0:00:21]} 25. g3 {[%emt 0:05:02]} fxg3+ {[%emt 0:01:51]} 26. Ke3 {[%emt 0:01:22]} Bg5+ {[%emt 0:01:41]} 27. Kd3 {[%emt 0:00:24]} g2 {[%emt 0:01:35]} 28. Rg1 {[%emt 0:01:45]} Nf4+ {[%emt 0:10:02]} 29. Kc4 {[%emt 0:00:24]} Rh3 {[%emt 0:03:03]} 30. fxg4 {[%emt 0:00:58]} Re3 {[%emt 0:01:40]} 31. Re1 {[%emt 0:02:26]} g1=Q {[%emt 0:02:41]} 32. Rxg1 {[%emt 0:00:07]} Rxe4+ {[%emt 0:00:03]} 33. Kb3 {[%emt 0:00:53]} Qa5 {[%emt 0:06:06]} 34. c4 {[%emt 0:01:37]} Re3+ {[%emt 0:02:23]} 35. Nc3 {[%emt 0:01:07]} Qb6 {[%emt 0:00:02]} 36. Kc2 {[%emt 0:00:37]} bxc3 {[%emt 0:00:01]} 37. bxc3 {[%emt 0:00:24]} Ne2 {[%emt 0:00:16]} 38. Qb1 {[%emt 0:00:52]} Rxc3+ {[%emt 0:02:04]} 39. Kd1 {[%emt 0:00:07]} Rc1+ {[%emt 0:00:57]} 40. Kxe2 {[%emt 0:00:19]} Rxb1 {[%emt 0:00:04]} 41. Rgxb1 {[%emt 0:00:18]} Qd8 {[%emt 0:00:16]} 42. Ra3 {[%emt 0:00:48]} Qf6 {[%emt 0:00:25]} 43. Rf3 {[%emt 0:01:31]} Qg6 {[%emt 0:00:02]} 44. Rh1 {[%emt 0:01:49]} Qc2+ {[%emt 0:00:31]} 45. Kf1 {[%emt 0:00:35]} Qd1+ {[%emt 0:00:02]} 46. Kg2 {[%emt 0:00:07]} Qe2+ {[%emt 0:00:04]} 47. Rf2 {[%emt 0:00:09]} Qxg4+ {[%emt 0:00:14]} 48. Kf1 {[%emt 0:00:04]} Qxc4+ {[%emt 0:00:04]} 49. Kg2 {[%emt 0:00:06]} Kg7 {[%emt 0:00:14]} 50. Rhf1 {[%emt 0:00:16]} f6 {[%emt 0:00:11]} 51. Rf3 {[%emt 0:00:06]} Rh8 {[%emt 0:00:50]} 52. R1f2 {[%emt 0:00:12]} e4 {[%emt 0:00:14]} 53. Rg3 {[%emt 0:00:19]} e3 {[%emt 0:00:04]} 54. Rb2 {[%emt 0:00:28]} Qc1 {[%emt 0:00:12]} 55. Kf3 {[%emt 0:00:47]} Qxb2 {[%emt 0:00:09]} 0-1

[Event "31st MPL National U18G Chess-ch 2022"]
[Site "Pollachi"]
[Date "2022.04.21"]
[Round "8.6"]
[White "Anupam M Sreekumar"]
[Black "Sindhusree K"]
[Result "1-0"]
[ECO "B41"]
[WhiteElo "1724"]
[BlackElo "1467"]
[Annotator "NA RC COMBH"]
[PlyCount "117"]
[EventDate "2022.04.18"]
[EventCountry "IND"]
[SourceTitle "playchess.com"]
[Source "ChessBase"]
[SourceQuality "1"]
[TimeControl "5400+30"]

1. e4 {[%emt 0:00:24]} c5 {[%emt 0:00:35]} 2. Nf3 {[%emt 0:00:09]} e6 {[%emt 0:00:04]} 3. c4 {[%emt 0:00:23]} a6 {[%emt 0:00:49]} 4. Nc3 {[%emt 0:00:12]} Qc7 {[%emt 0:00:14]} 5. Be2 {[%emt 0:00:28]} d6 {[%emt 0:00:15]} 6. O-O {[%emt 0:00:35]} Nf6 {[%emt 0:00:09]} 7. d4 {[%emt 0:00:17]} cxd4 {[%emt 0:00:09]} 8. Nxd4 {[%emt 0:00:03]} Be7 {[%emt 0:00:26]} 9. Be3 {[%emt 0:00:17]} O-O {[%emt 0:00:13]} 10. Rc1 {[%emt 0:00:19]} Nbd7 {[%emt 0:02:41]} 11. f4 {[%emt 0:01:52]} b6 {[%emt 0:07:20]} 12. f5 {[%emt 0:02:19]} e5 {[%emt 0:00:27]} 13. Nd5 {[%emt 0:00:51]} Nxd5 {[%emt 0:01:24]} 14. cxd5 {[%emt 0:00:22]} Qb7 {[%emt 0:04:04]} 15. Nc6 {[%emt 0:01:01]} Bf6 {[%emt 0:03:26]} 16. g4 {[%emt 0:00:27]} h6 {[%emt 0:00:06]} 17. Qe1 {[%emt 0:00:36]} Nc5 {[%emt 0:02:38]} 18. Rxc5 {[%emt 0:06:29]} bxc5 {[%emt 0:21:43]} 19. Qd2 {[%emt 0:00:21]} Qc7 {[%emt 0:21:36]} 20. g5 {[%emt 0:01:58]} hxg5 {[%emt 0:01:42]} 21. Bxg5 {[%emt 0:00:14]} Bxg5 {[%emt 0:00:47]} 22. Qxg5 {[%emt 0:00:02]} f6 {[%emt 0:00:02]} 23. Qh4 {[%emt 0:00:16]} Bb7 {[%emt 0:04:22]} 24. Rf3 {[%emt 0:01:39]} Bxc6 {[%emt 0:01:29]} 25. dxc6 {[%emt 0:00:43]} Kf7 {[%emt 0:02:24]} 26. Rg3 {[%emt 0:04:33]} Ke8 {[%emt 0:01:37]} 27. Qh7 {[%emt 0:00:25]} Ra7 {[%emt 0:00:14]} 28. Bc4 {[%emt 0:02:03]} g5 {[%emt 0:08:39]} 29. fxg6 {[%emt 0:02:58]} Qxh7 {[%emt 0:00:12]} 30. gxh7 {[%emt 0:00:03]} Rxh7 {[%emt 0:00:02]} 31. Bxa6 {[%emt 0:00:07]} Ra7 {[%emt 0:05:30]} 32. Bb7 {[%emt 0:02:38]} Kf7 {[%emt 0:05:00]} 33. h4 {[%emt 0:05:16]} Rh8 {[%emt 0:03:16]} 34. Ra3 {[%emt 0:00:51]} Rxa3 {[%emt 0:02:06]} 35. bxa3 {[%emt 0:00:02]} Rxh4 {[%emt 0:00:15]} 36. c7 {[%emt 0:00:37]} Rh8 {[%emt 0:00:07]} 37. c8=Q {[%emt 0:00:18]} Rxc8 {[%emt 0:00:03]} 38. Bxc8 {[%emt 0:00:04]} Ke7 {[%emt 0:00:11]} 39. Kf2 {[%emt 0:00:56]} Kd8 {[%emt 0:00:34]} 40. Be6 {[%emt 0:00:15]} Kc7 {[%emt 0:00:14]} 41. Ke3 {[%emt 0:00:32]} Kb6 {[%emt 0:00:05]} 42. Kd3 {[%emt 0:00:09]} Ka5 {[%emt 0:02:27]} 43. Bd7 {[%emt 0:00:19]} Kb6 {[%emt 0:00:14]} 44. Kc4 {[%emt 0:00:09]} Kc7 {[%emt 0:00:04]} 45. Be6 {[%emt 0:00:32]} Kc6 {[%emt 0:00:17]} 46. a4 {[%emt 0:00:10]} Kb6 {[%emt 0:00:26]} 47. a3 {[%emt 0:00:13]} Ka5 {[%emt 0:00:40]} 48. Bd7 {[%emt 0:00:39]} Kb6 {[%emt 0:00:19]} 49. Bb5 {[%emt 0:01:20]} Kb7 {[%emt 0:02:38]} 50. a5 {[%emt 0:00:23]} Kb8 {[%emt 0:00:24]} 51. Kd5 {[%emt 0:00:22]} Kc7 {[%emt 0:00:06]} 52. a6 {[%emt 0:00:15]} Kb6 {[%emt 0:00:34]} 53. Kxd6 {[%emt 0:00:06]} f5 {[%emt 0:00:03]} 54. exf5 {[%emt 0:00:30]} e4 {[%emt 0:00:04]} 55. Be2 {[%emt 0:00:07]} c4 {[%emt 0:00:05]} 56. Bxc4 {[%emt 0:00:05]} e3 {[%emt 0:00:13]} 57. f6 {[%emt 0:00:22]} e2 {[%emt 0:00:05]} 58. Bxe2 {[%emt 0:00:05]} Ka5 {[%emt 0:00:02]} 59. f7 {[%emt 0:00:10]} 1-0

[Event "31st MPL National U18G Chess-ch 2022"]
[Site "Pollachi"]
[Date "2022.04.21"]
[Round "8.7"]
[White "Saniya Rafique Tadavi"]
[Black "Vakcheri Mohitha"]
[Result "*"]
[ECO "B87"]
[WhiteElo "1298"]
[BlackElo "1459"]
[Annotator "NA RC COMBH"]
[PlyCount "25"]
[EventDate "2022.04.18"]
[EventCountry "IND"]
[SourceTitle "playchess.com"]
[Source "ChessBase"]
[SourceQuality "1"]
[TimeControl "5400+30"]

1. e4 {[%emt 0:00:02]} c5 {[%emt 0:00:12]} 2. Nf3 {[%emt 0:00:03]} d6 {[%emt 0:00:11]} 3. d4 {[%emt 0:00:04]} cxd4 {[%emt 0:00:08]} 4. Nxd4 {[%emt 0:00:03]} Nf6 {[%emt 0:00:10]} 5. Nc3 {[%emt 0:00:04]} a6 {[%emt 0:00:09]} 6. Bc4 {[%emt 0:00:06]} e6 {[%emt 0:00:06]} 7. Bb3 {[%emt 0:00:04]} b5 {[%emt 0:00:10]} 8. Qf3 {[%emt 0:02:05]} Qb6 {[%emt 0:04:29]} 9. Be3 {[%emt 0:00:00]} Qb7 {[%emt 0:00:44]} 10. Bg5 {[%emt 0:00:00]} Be7 {[%emt 0:11:13]} 11. O-O {[%emt 0:00:00]} Nbd7 {[%emt 0:07:50]} 12. Rfe1 {[%emt 0:00:00]} Nc5 {[%emt 0:07:11]} 13. a3 {[%emt 0:00:00]} *